[Event "DVM U14 2021"]
[Site "Willingen"]
[Date "2022.08.14"]
[Round "4"]
[White "Tietz, Bennit"]
[Black "Römer, Uri"]
[Result "1/2-1/2"]
[ECO "C50"]
[WhiteElo "1684"]
[BlackElo "1485"]
[Annotator "NA RC"]
[PlyCount "68"]
[EventDate "2022.08.12"]
[EventType "team-tourn"]
[EventRounds "7"]
[EventCountry "GER"]
[SourceTitle "playchess.com"]
[Source "ChessBase"]
[SourceQuality "1"]
[TimeControl "40/5400+30:1800+30"]

1. e4 {[%emt 0:00:04]} e5 {[%emt 0:00:00]} 2. Nf3 {[%emt 0:00:03]} Nc6 {[%emt 0:00:00]} 3. Bc4 {[%emt 0:00:09]} Nf6 {[%emt 0:00:00]} 4. d3 {[%emt 0:00:51]} h6 {[%emt 0:00:04]} 5. h3 {[%emt 0:00:45]} Bc5 {[%emt 0:00:13]} 6. Nc3 {[%emt 0:00:42]} d6 {[%emt 0:00:24]} 7. Na4 {[%emt 0:01:32]} Bb6 {[%emt 0:00:46]} 8. Nxb6 {[%emt 0:00:25]} axb6 {[%emt 0:01:02]} 9. O-O {[%emt 0:01:05]} Be6 {[%emt 0:00:40]} 10. Bxe6 {[%emt 0:00:46]} fxe6 {[%emt 0:01:31]} 11. c3 {[%emt 0:01:10]} O-O {[%emt 0:00:27]} 12. Re1 {[%emt 0:03:26]} Re8 {[%emt 0:02:32]} 13. d4 {[%emt 0:09:10]} exd4 {[%emt 0:02:24]} 14. cxd4 {[%emt 0:04:34]} d5 {[%emt 0:09:26]} 15. exd5 {[%emt 0:00:58]} exd5 {[%emt 0:06:24]} 16. Rxe8+ {[%emt 0:00:48]} Qxe8 {[%emt 0:01:06]} 17. Bf4 {[%emt 0:08:35]} Qf7 {[%emt 0:15:40]} 18. Ne5 {[%emt 0:01:36]} Nxe5 {[%emt 0:00:03]} 19. Bxe5 {[%emt 0:20:28]} c5 {[%emt 0:17:30]} 20. dxc5 {[%emt 0:00:45]} bxc5 {[%emt 0:00:10]} 21. Bxf6 {[%emt 0:00:44]} gxf6 {[%emt 0:07:44]} 22. Qc1 {[%emt 0:04:03]} Qf8 {[%emt 0:02:04]} 23. Qd2 {[%emt 0:06:06]} d4 {[%emt 0:01:10]} 24. Qc2 {[%emt 0:05:54]} Rd8 {[%emt 0:16:15]} 25. Kf1 {[%emt 0:06:47]} Kg7 {[%emt 0:03:00]} 26. Qb3 {[%emt 0:05:09]} Rd7 {[%emt 0:01:18]} 27. Qg3+ {[%emt 0:02:58]} Kh8 {[%emt 0:03:12]} 28. Rd1 {[%emt 0:05:13]} Rg7 {[%emt 0:01:02]} 29. Qf4 {[%emt 0:01:05]} Rd7 {[%emt 0:02:41]} 30. Qf5 {[%emt 0:01:29]} Rc7 {[%emt 0:02:12]} 31. Re1 {[%emt 0:04:42]} Qf7 {[%emt 0:01:50]} 32. Re6 {[%emt 0:00:16]} Kg7 {[%emt 0:01:01]} 33. Qg4+ {[%emt 0:01:22]} Kh8 {[%emt 0:00:25]} 34. Qf5 {[%emt 0:00:06]} Kg7 {[%emt 0:01:25]} 1/2-1/2

[Event "DVM U14 2021"]
[Site "Willingen"]
[Date "2022.08.14"]
[Round "4"]
[White "Fettig, Konrad"]
[Black "Gering, Jakob"]
[Result "0-1"]
[ECO "A36"]
[WhiteElo "1677"]
[BlackElo "1349"]
[Annotator "NA RC"]
[PlyCount "78"]
[EventDate "2022.08.12"]
[EventType "team-tourn"]
[EventRounds "7"]
[EventCountry "GER"]
[SourceTitle "playchess.com"]
[Source "ChessBase"]
[SourceQuality "1"]
[TimeControl "40/5400+30:1800+30"]

1. c4 {[%emt 0:00:03]} c5 {[%emt 0:00:11]} 2. g3 {[%emt 0:00:05]} g6 {[%emt 0:00:33]} 3. Bg2 {[%emt 0:00:03]} Bg7 {[%emt 0:00:11]} 4. Nc3 {[%emt 0:00:04]} Nc6 {[%emt 0:00:16]} 5. e4 {[%emt 0:00:13]} e6 {[%emt 0:00:17]} 6. Nf3 {[%emt 0:00:27]} Nge7 {[%emt 0:00:24]} 7. O-O {[%emt 0:01:13]} O-O {[%emt 0:00:49]} 8. d3 {[%emt 0:01:58]} a6 {[%emt 0:01:19]} 9. Be3 {[%emt 0:01:28]} b6 {[%emt 0:05:25]} 10. Qd2 {[%emt 0:02:49]} Bb7 {[%emt 0:02:46]} 11. Bh6 {[%emt 0:01:31]} d5 {[%emt 0:01:47]} 12. Bxg7 {[%emt 0:00:21]} Kxg7 {[%emt 0:00:16]} 13. cxd5 {[%emt 0:00:53]} exd5 {[%emt 0:01:33]} 14. exd5 {[%emt 0:00:19]} Nb4 {[%emt 0:05:22]} 15. d4 {[%emt 0:05:13]} c4 {[%emt 0:05:40]} 16. Qe2 {[%emt 0:12:00]} Rc8 {[%emt 0:09:15]} 17. Ne5 {[%emt 0:08:19]} Nexd5 {[%emt 0:05:26]} 18. a3 {[%emt 0:03:32]} Nxc3 {[%emt 0:02:38]} 19. bxc3 {[%emt 0:00:31]} Bxg2 {[%emt 0:01:17]} 20. Kxg2 {[%emt 0:00:27]} Nd5 {[%emt 0:02:05]} 21. Qb2 {[%emt 0:04:57]} h5 {[%emt 0:11:14]} 22. Nf3 {[%emt 0:02:47]} Qd7 {[%emt 0:08:10]} 23. Rfe1 {[%emt 0:02:33]} Nf4+ {[%emt 0:04:20]} 24. gxf4 {[%emt 0:02:00]} Qg4+ {[%emt 0:00:35]} 25. Kf1 {[%emt 0:01:20]} Qxf3 {[%emt 0:00:52]} 26. Re3 {[%emt 0:02:14]} Qxf4 {[%emt 0:04:36]} 27. Kg2 {[%emt 0:03:23]} Rc6 {[%emt 0:06:26]} 28. Rae1 {[%emt 0:02:02]} h4 {[%emt 0:03:24]} 29. Qe2 {[%emt 0:02:38]} Rf6 {[%emt 0:02:18]} 30. Re5 {[%emt 0:03:46]} h3+ {[%emt 0:04:08]} 31. Kg1 {[%emt 0:01:43]} Rh8 {[%emt 0:05:27]} 32. Qe3 {[%emt 0:00:58]} Rh4 {[%emt 0:01:09]} 33. Qxf4 {[%emt 0:01:10]} Rhxf4 {[%emt 0:01:32]} 34. R1e2 {[%emt 0:01:18]} Rg4+ {[%emt 0:01:03]} 35. Kf1 {[%emt 0:02:49]} Rg2 {[%emt 0:00:47]} 36. d5 {[%emt 0:00:53]} Rxh2 {[%emt 0:00:48]} 37. Rd2 {[%emt 0:00:25]} Rh1+ {[%emt 0:00:56]} 38. Ke2 {[%emt 0:00:10]} h2 {[%emt 0:01:20]} 39. d6 {[%emt 0:00:18]} Rg1 {[%emt 0:01:07]} 0-1

[Event "DVM U14 2021"]
[Site "Willingen"]
[Date "2022.08.14"]
[Round "4"]
[White "Schwan, Aaron"]
[Black "Beyer, Lorenz"]
[Result "0-1"]
[ECO "C01"]
[WhiteElo "1672"]
[BlackElo "1587"]
[Annotator "NA RC"]
[PlyCount "144"]
[EventDate "2022.08.12"]
[EventType "team-tourn"]
[EventRounds "7"]
[EventCountry "GER"]
[SourceTitle "playchess.com"]
[Source "ChessBase"]
[SourceQuality "1"]
[TimeControl "40/5400+30:1800+30"]

1. e4 {[%emt 0:00:06]} e6 {[%emt 0:00:00]} 2. d4 {[%emt 0:00:02]} d5 {[%emt 0:00:00]} 3. Bd3 {[%emt 0:00:04]} dxe4 {[%emt 0:00:00]} 4. Bxe4 {[%emt 0:00:06]} Nf6 {[%emt 0:00:00]} 5. Bf3 {[%emt 0:00:43]} c5 {[%emt 0:00:00]} 6. Ne2 {[%emt 0:00:33]} Be7 {[%emt 0:00:58]} 7. O-O {[%emt 0:00:07]} O-O {[%emt 0:01:32]} 8. Nbc3 {[%emt 0:01:38]} Nc6 {[%emt 0:00:24]} 9. Be3 {[%emt 0:01:25]} cxd4 {[%emt 0:00:01]} 10. Nxd4 {[%emt 0:00:27]} Ne5 {[%emt 0:04:54]} 11. Be2 {[%emt 0:03:46]} Bd7 {[%emt 0:08:07]} 12. f4 {[%emt 0:02:22]} Nc6 {[%emt 0:01:58]} 13. Bf3 {[%emt 0:05:45]} Bc5 {[%emt 0:03:16]} 14. Kh1 {[%emt 0:02:24]} Nxd4 {[%emt 0:01:46]} 15. Bxd4 {[%emt 0:00:03]} Bxd4 {[%emt 0:00:02]} 16. Qxd4 {[%emt 0:00:34]} Qc7 {[%emt 0:05:02]} 17. Qb4 {[%emt 0:03:31]} Bc6 {[%emt 0:05:07]} 18. Rad1 {[%emt 0:06:47]} Rad8 {[%emt 0:09:08]} 19. Qc4 {[%emt 0:04:29]} Qb6 {[%emt 0:03:25]} 20. Bxc6 {[%emt 0:00:14]} bxc6 {[%emt 0:01:24]} 21. Na4 {[%emt 0:02:46]} Qc7 {[%emt 0:01:39]} 22. Nc5 {[%emt 0:03:57]} h6 {[%emt 0:02:47]} 23. Nd3 {[%emt 0:00:29]} Nd5 {[%emt 0:04:49]} 24. Rfe1 {[%emt 0:03:13]} Qb6 {[%emt 0:03:03]} 25. Qb3 {[%emt 0:01:44]} Qc7 {[%emt 0:05:48]} 26. Qa4 {[%emt 0:02:26]} Rd6 {[%emt 0:02:07]} 27. Ne5 {[%emt 0:01:46]} Rfd8 {[%emt 0:03:20]} 28. c3 {[%emt 0:08:18]} Nb6 {[%emt 0:03:51]} 29. Qc2 {[%emt 0:06:03]} Nd5 {[%emt 0:02:14]} 30. Qa4 {[%emt 0:00:41]} Nb6 {[%emt 0:04:28]} 31. Qb3 {[%emt 0:10:06]} c5 {[%emt 0:05:42]} 32. Rxd6 {[%emt 0:00:50]} Qxd6 {[%emt 0:02:23]} 33. Qc2 {[%emt 0:00:43]} Qd2 {[%emt 0:02:26]} 34. Qe4 {[%emt 0:05:34]} f5 {[%emt 0:01:53]} 35. Qb1 {[%emt 0:03:46]} Qxf4 {[%emt 0:03:47]} 36. Nd3 {[%emt 0:06:20]} Qc4 {[%emt 0:03:49]} 37. Ne5 {[%emt 0:00:53]} Qd5 {[%emt 0:01:11]} 38. Ng6 {[%emt 0:03:45]} Qd3 {[%emt 0:06:26]} 39. Qxd3 {[%emt 0:00:05]} Rxd3 {[%emt 0:00:41]} 40. Kg1 {[%emt 0:01:43]} Rd6 {[%emt 0:00:00]} 41. Re2 {[%emt 0:04:23]} Nd5 {[%emt 0:06:43]} 42. c4 {[%emt 0:01:00]} Nf6 {[%emt 0:02:03]} 43. Re5 {[%emt 0:01:01]} Ne4 {[%emt 0:00:47]} 44. g4 {[%emt 0:03:36]} Kf7 {[%emt 0:00:47]} 45. gxf5 {[%emt 0:00:02]} exf5 {[%emt 0:01:41]} 46. Nf4 {[%emt 0:01:57]} g6 {[%emt 0:01:21]} 47. Nd5 {[%emt 0:00:45]} Re6 {[%emt 0:00:04]} 48. Rxe6 {[%emt 0:00:04]} Kxe6 {[%emt 0:01:48]} 49. Nf4+ {[%emt 0:00:16]} Kf6 {[%emt 0:00:11]} 50. Nd3 {[%emt 0:03:25]} g5 {[%emt 0:02:33]} 51. a3 {[%emt 0:02:58]} a5 {[%emt 0:00:23]} 52. b4 {[%emt 0:00:30]} cxb4 {[%emt 0:00:12]} 53. axb4 {[%emt 0:00:12]} axb4 {[%emt 0:00:02]} 54. Nxb4 {[%emt 0:02:30]} Nc5 {[%emt 0:02:04]} 55. Nc6 {[%emt 0:01:36]} f4 {[%emt 0:00:36]} 56. Kg2 {[%emt 0:00:23]} g4 {[%emt 0:01:28]} 57. Nb4 {[%emt 0:01:09]} h5 {[%emt 0:02:30]} 58. Kf2 {[%emt 0:01:46]} Kf5 {[%emt 0:00:54]} 59. Nc2 {[%emt 0:00:46]} Ke4 {[%emt 0:00:23]} 60. Ne1 {[%emt 0:02:38]} h4 {[%emt 0:03:23]} 61. h3 {[%emt 0:07:37]} gxh3 {[%emt 0:01:27]} 62. Nf3 {[%emt 0:00:30]} Nd3+ {[%emt 0:00:13]} 63. Ke2 {[%emt 0:00:48]} Ne5 {[%emt 0:01:12]} 64. Ng5+ {[%emt 0:00:36]} Kf5 {[%emt 0:00:10]} 65. Nxh3 {[%emt 0:00:17]} Nxc4 {[%emt 0:02:00]} 66. Kf3 {[%emt 0:00:16]} Ne5+ {[%emt 0:00:25]} 67. Kf2 {[%emt 0:00:13]} Kg4 {[%emt 0:05:29]} 68. Kg2 {[%emt 0:01:12]} f3+ {[%emt 0:00:01]} 69. Kh2 {[%emt 0:00:18]} Nd3 {[%emt 0:03:20]} 70. Nf2+ {[%emt 0:00:12]} Nxf2 {[%emt 0:00:01]} 71. Kg1 {[%emt 0:00:23]} Kg3 {[%emt 0:00:06]} 72. Kf1 {[%emt 0:00:09]} h3 {[%emt 0:00:08]} 0-1

[Event "DVM U14 2021"]
[Site "Willingen"]
[Date "2022.08.14"]
[Round "4"]
[White "Reus, Nicholas"]
[Black "Isbilir, Levin"]
[Result "1/2-1/2"]
[ECO "A25"]
[WhiteElo "1663"]
[BlackElo "1629"]
[Annotator "NA RC"]
[PlyCount "100"]
[EventDate "2022.08.12"]
[EventType "team-tourn"]
[EventRounds "7"]
[EventCountry "GER"]
[SourceTitle "playchess.com"]
[Source "ChessBase"]
[SourceQuality "1"]
[TimeControl "40/5400+30:1800+30"]

1. c4 {[%emt 0:00:05]} e5 {[%emt 0:00:00]} 2. Nc3 {[%emt 0:00:05]} Nc6 {[%emt 0:00:00]} 3. e3 {[%emt 0:00:45]} f5 {[%emt 0:00:13]} 4. d4 {[%emt 0:01:23]} Nf6 {[%emt 0:00:55]} 5. d5 {[%emt 0:00:45]} Ne7 {[%emt 0:00:58]} 6. Nf3 {[%emt 0:00:48]} d6 {[%emt 0:01:26]} 7. g3 {[%emt 0:01:02]} g6 {[%emt 0:01:37]} 8. Bg2 {[%emt 0:00:31]} Bg7 {[%emt 0:00:20]} 9. O-O {[%emt 0:00:20]} O-O {[%emt 0:01:23]} 10. Re1 {[%emt 0:05:23]} h6 {[%emt 0:02:54]} 11. h4 {[%emt 0:02:37]} Bd7 {[%emt 0:04:07]} 12. Qd2 {[%emt 0:08:49]} Nh5 {[%emt 0:02:39]} 13. Ne2 {[%emt 0:03:59]} Qc8 {[%emt 0:01:18]} 14. Kh2 {[%emt 0:08:15]} Kh7 {[%emt 0:03:52]} 15. Nfg1 {[%emt 0:08:29]} Ng8 {[%emt 0:03:54]} 16. Nh3 {[%emt 0:01:04]} Ngf6 {[%emt 0:07:46]} 17. f4 {[%emt 0:02:10]} Ng4+ {[%emt 0:00:21]} 18. Kg1 {[%emt 0:01:51]} e4 {[%emt 0:01:25]} 19. Rb1 {[%emt 0:04:40]} b5 {[%emt 0:04:31]} 20. b3 {[%emt 0:01:12]} bxc4 {[%emt 0:00:33]} 21. bxc4 {[%emt 0:02:00]} Qa6 {[%emt 0:02:50]} 22. Rb4 {[%emt 0:03:46]} Rfb8 {[%emt 0:01:20]} 23. a3 {[%emt 0:10:48]} Rb6 {[%emt 0:01:20]} 24. Nf2 {[%emt 0:04:58]} Nxf2 {[%emt 0:00:11]} 25. Kxf2 {[%emt 0:01:06]} Nf6 {[%emt 0:03:08]} 26. Bh3 {[%emt 0:00:57]} Rab8 {[%emt 0:01:37]} 27. Rxb6 {[%emt 0:04:00]} Rxb6 {[%emt 0:00:37]} 28. Qa2 {[%emt 0:01:32]} Ba4 {[%emt 0:05:11]} 29. Nd4 {[%emt 0:01:16]} Bb3 {[%emt 0:08:10]} 30. Nxb3 {[%emt 0:00:07]} Qxc4 {[%emt 0:07:49]} 31. Rd1 {[%emt 0:02:11]} Qxb3 {[%emt 0:00:14]} 32. Qxb3 {[%emt 0:00:04]} Rxb3 {[%emt 0:01:04]} 33. Bf1 {[%emt 0:01:22]} Ng4+ {[%emt 0:00:13]} 34. Ke2 {[%emt 0:01:59]} Bb2 {[%emt 0:00:10]} 35. Bxb2 {[%emt 0:00:09]} Rxb2+ {[%emt 0:00:08]} 36. Rd2 {[%emt 0:09:00]} Rxd2+ {[%emt 0:00:05]} 37. Kxd2 {[%emt 0:00:26]} Nf6 {[%emt 0:00:11]} 38. Bc4 {[%emt 0:00:33]} Kg7 {[%emt 0:00:23]} 39. a4 {[%emt 0:02:26]} a5 {[%emt 0:00:11]} 40. Ke2 {[%emt 0:00:31]} Kf7 {[%emt 0:00:39]} 41. Ke1 {[%emt 0:30:25]} Ke7 {[%emt 0:30:21]} 42. Ke2 {[%emt 0:01:04]} Kd8 {[%emt 0:01:20]} 43. Ke1 {[%emt 0:00:00]} Kc8 {[%emt 0:00:00]} 44. Kd2 {[%emt 0:02:47]} Ng4 {[%emt 0:00:00]} 45. Ba6+ {[%emt 0:00:34]} Kd8 {[%emt 0:00:00]} 46. Bb5 {[%emt 0:25:45]} Nf6 {[%emt 0:00:27]} 47. Bc4 {[%emt 0:00:10]} Kc8 {[%emt 0:00:04]} 48. Kc3 {[%emt 0:00:04]} Kb7 49. Kd4 {[%emt 0:00:02]} Kb6 50. g4 {[%emt 0:00:05]} Nh5 1/2-1/2

[Event "DVM U14 2021"]
[Site "Willingen"]
[Date "2022.08.14"]
[Round "4"]
[White "Helmbrecht, Paul"]
[Black "Freude, Max"]
[Result "0-1"]
[ECO "D00"]
[WhiteElo "1661"]
[BlackElo "1819"]
[Annotator "NA RC"]
[PlyCount "76"]
[EventDate "2022.08.12"]
[EventType "team-tourn"]
[EventRounds "7"]
[EventCountry "GER"]
[SourceTitle "playchess.com"]
[Source "ChessBase"]
[SourceQuality "1"]
[TimeControl "40/5400+30:1800+30"]

1. d4 {[%emt 0:00:05]} Nf6 {[%emt 0:00:00]} 2. Nc3 {[%emt 0:03:13]} d5 {[%emt 0:00:18]} 3. Bf4 {[%emt 0:01:49]} e6 {[%emt 0:00:19]} 4. e3 {[%emt 0:02:02]} a6 {[%emt 0:03:32]} 5. g4 {[%emt 0:09:12]} h6 {[%emt 0:04:02]} 6. Qf3 {[%emt 0:02:52]} c5 {[%emt 0:03:42]} 7. h4 {[%emt 0:03:02]} Qa5 {[%emt 0:18:27]} 8. Nge2 {[%emt 0:04:19]} c4 {[%emt 0:07:41]} 9. Bg2 {[%emt 0:06:27]} b5 {[%emt 0:00:15]} 10. Qg3 {[%emt 0:02:18]} Nc6 {[%emt 0:01:39]} 11. O-O {[%emt 0:03:19]} Ra7 {[%emt 0:01:21]} 12. a3 {[%emt 0:05:54]} Qd8 {[%emt 0:02:32]} 13. f3 {[%emt 0:07:25]} Be7 {[%emt 0:05:55]} 14. h5 {[%emt 0:01:31]} O-O {[%emt 0:02:15]} 15. e4 {[%emt 0:09:36]} b4 {[%emt 0:01:30]} 16. axb4 {[%emt 0:01:14]} Nxb4 {[%emt 0:06:34]} 17. e5 {[%emt 0:00:55]} Nh7 {[%emt 0:00:43]} 18. Rac1 {[%emt 0:03:24]} Bd7 {[%emt 0:04:03]} 19. Be3 {[%emt 0:02:57]} a5 {[%emt 0:03:06]} 20. Nd1 {[%emt 0:03:16]} Ba4 {[%emt 0:01:51]} 21. c3 {[%emt 0:00:38]} Nd3 {[%emt 0:00:35]} 22. Ra1 {[%emt 0:01:30]} Bxd1 {[%emt 0:00:44]} 23. Rfxd1 {[%emt 0:01:31]} Nxb2 {[%emt 0:00:06]} 24. Rdb1 {[%emt 0:00:10]} Nd3 {[%emt 0:00:07]} 25. Nc1 {[%emt 0:05:10]} Nxc1 {[%emt 0:00:06]} 26. Bxc1 {[%emt 0:05:36]} Qc7 {[%emt 0:05:02]} 27. f4 {[%emt 0:10:38]} Rb8 {[%emt 0:00:06]} 28. g5 {[%emt 0:00:42]} hxg5 {[%emt 0:00:06]} 29. fxg5 {[%emt 0:01:09]} Nf8 {[%emt 0:05:26]} 30. Bf4 {[%emt 0:00:58]} Rxb1+ {[%emt 0:00:06]} 31. Rxb1 {[%emt 0:01:01]} g6 {[%emt 0:02:35]} 32. Qf2 {[%emt 0:00:21]} a4 {[%emt 0:11:43]} 33. Bxd5 {[%emt 0:00:25]} exd5 {[%emt 0:00:05]} 34. e6 {[%emt 0:00:39]} Bd6 {[%emt 0:01:20]} 35. exf7+ {[%emt 0:00:37]} Kg7 {[%emt 0:08:00]} 36. Bxd6 {[%emt 0:00:07]} Qxd6 {[%emt 0:00:04]} 37. h6+ {[%emt 0:00:12]} Kh7 {[%emt 0:01:30]} 38. Rb8 {[%emt 0:01:54]} a3 0-1

[Event "DVM U14 2021"]
[Site "Willingen"]
[Date "2022.08.14"]
[Round "4"]
[White "Hoffmann, Kay"]
[Black "Prinzen, Siri Marleen"]
[Result "1-0"]
[ECO "A03"]
[WhiteElo "1653"]
[BlackElo "1801"]
[Annotator "NA RC"]
[PlyCount "79"]
[EventDate "2022.08.12"]
[EventType "team-tourn"]
[EventRounds "7"]
[EventCountry "GER"]
[SourceTitle "playchess.com"]
[Source "ChessBase"]
[SourceQuality "1"]
[TimeControl "40/5400+30:1800+30"]

1. f4 {[%emt 0:00:02]} d5 {[%emt 0:01:34]} 2. Nf3 {[%emt 0:00:06]} Nf6 {[%emt 0:01:17]} 3. e3 {[%emt 0:00:08]} g6 {[%emt 0:01:14]} 4. b3 {[%emt 0:00:51]} Bg7 {[%emt 0:01:06]} 5. Bb2 {[%emt 0:00:06]} c5 {[%emt 0:03:07]} 6. Bb5+ {[%emt 0:00:15]} Bd7 {[%emt 0:01:41]} 7. Bxd7+ {[%emt 0:00:05]} Nbxd7 {[%emt 0:00:22]} 8. O-O {[%emt 0:00:21]} Qb6 {[%emt 0:03:17]} 9. Na3 {[%emt 0:09:23]} Nh5 {[%emt 0:03:44]} 10. Ne5 {[%emt 0:01:58]} a6 {[%emt 0:10:35]} 11. Qf3 {[%emt 0:07:00]} Qd6 {[%emt 0:02:58]} 12. e4 {[%emt 0:03:01]} d4 {[%emt 0:05:45]} 13. Nac4 {[%emt 0:00:57]} Qc7 {[%emt 0:01:48]} 14. Nxd7 {[%emt 0:01:27]} Kxd7 {[%emt 0:00:22]} 15. g4 {[%emt 0:00:59]} Nf6 {[%emt 0:01:29]} 16. e5 {[%emt 0:01:11]} Ng8 {[%emt 0:02:51]} 17. Qd5+ {[%emt 0:05:13]} Ke8 {[%emt 0:01:24]} 18. e6 {[%emt 0:04:27]} fxe6 {[%emt 0:04:16]} 19. Qxe6 {[%emt 0:00:18]} Qc6 {[%emt 0:01:07]} 20. Qxc6+ {[%emt 0:07:36]} bxc6 {[%emt 0:00:07]} 21. Ba3 {[%emt 0:01:50]} Nf6 {[%emt 0:02:48]} 22. Bxc5 {[%emt 0:01:16]} d3 {[%emt 0:12:01]} 23. Rae1 {[%emt 0:03:33]} Bf8 {[%emt 0:05:34]} 24. g5 {[%emt 0:02:19]} Nh5 {[%emt 0:03:00]} 25. Nd6+ {[%emt 0:00:39]} Kd7 {[%emt 0:00:13]} 26. Nf7 {[%emt 0:00:06]} Rg8 {[%emt 0:00:21]} 27. Ne5+ {[%emt 0:00:07]} Kc7 {[%emt 0:00:37]} 28. Nxd3 {[%emt 0:00:06]} Re8 {[%emt 0:00:36]} 29. Re4 {[%emt 0:04:20]} Ng7 {[%emt 0:01:56]} 30. Ra4 {[%emt 0:05:23]} Ra8 {[%emt 0:02:02]} 31. Bd4 {[%emt 0:07:34]} e6 {[%emt 0:03:29]} 32. Re1 {[%emt 0:02:24]} Nf5 {[%emt 0:01:57]} 33. Rxe6 {[%emt 0:01:57]} Bd6 {[%emt 0:01:09]} 34. Be5 {[%emt 0:00:40]} Kd7 {[%emt 0:01:19]} 35. Rxd6+ {[%emt 0:00:22]} Nxd6 {[%emt 0:00:38]} 36. Rd4 {[%emt 0:00:04]} Rgc8 {[%emt 0:01:04]} 37. Rxd6+ {[%emt 0:01:06]} Ke7 {[%emt 0:00:09]} 38. Nc5 {[%emt 0:00:38]} Rd8 {[%emt 0:01:08]} 39. Re6+ {[%emt 0:01:15]} Kf7 {[%emt 0:00:09]} 40. d4 {[%emt 0:00:33]} 1-0

[Event "DVM U14 2021"]
[Site "Willingen"]
[Date "2022.08.14"]
[Round "4"]
[White "Gold, Jan Christian"]
[Black "Marcziter, Alex"]
[Result "1-0"]
[ECO "D30"]
[WhiteElo "1638"]
[BlackElo "1466"]
[Annotator "NA RC"]
[PlyCount "67"]
[EventDate "2022.08.12"]
[EventType "team-tourn"]
[EventRounds "7"]
[EventCountry "GER"]
[SourceTitle "playchess.com"]
[Source "ChessBase"]
[SourceQuality "1"]
[TimeControl "40/5400+30:1800+30"]

1. d4 {[%emt 0:00:16]} d5 {[%emt 0:00:00]} 2. c4 {[%emt 0:00:46]} e6 {[%emt 0:00:00]} 3. Nf3 {[%emt 0:00:53]} c6 {[%emt 0:00:02]} 4. Bf4 {[%emt 0:01:00]} f5 {[%emt 0:00:15]} 5. e3 {[%emt 0:01:07]} Nf6 {[%emt 0:00:12]} 6. cxd5 {[%emt 0:01:14]} exd5 {[%emt 0:00:10]} 7. Bd3 {[%emt 0:02:08]} Be7 {[%emt 0:00:13]} 8. O-O {[%emt 0:01:10]} O-O {[%emt 0:00:20]} 9. Nbd2 {[%emt 0:02:44]} Ne4 {[%emt 0:00:32]} 10. Ne5 {[%emt 0:03:43]} Nxd2 {[%emt 0:00:03]} 11. Qxd2 {[%emt 0:01:51]} Be6 {[%emt 0:00:57]} 12. h3 {[%emt 0:02:05]} Nd7 {[%emt 0:01:31]} 13. Nxd7 {[%emt 0:00:32]} Qxd7 {[%emt 0:00:02]} 14. Be5 {[%emt 0:04:31]} Bf6 {[%emt 0:00:02]} 15. f4 {[%emt 0:09:43]} Be7 {[%emt 0:01:39]} 16. Kh2 {[%emt 0:08:42]} Bd6 {[%emt 0:00:47]} 17. Qe2 {[%emt 0:05:24]} Rf7 {[%emt 0:01:54]} 18. Rg1 {[%emt 0:02:12]} Bxe5 {[%emt 0:00:01]} 19. dxe5 {[%emt 0:03:01]} Rd8 {[%emt 0:01:19]} 20. g4 {[%emt 0:02:04]} Rff8 {[%emt 0:01:20]} 21. Raf1 {[%emt 0:02:51]} Kh8 {[%emt 0:00:28]} 22. Rf2 {[%emt 0:02:41]} g6 {[%emt 0:04:44]} 23. b3 {[%emt 0:02:31]} Rg8 {[%emt 0:00:12]} 24. Rfg2 {[%emt 0:02:46]} Qf7 {[%emt 0:04:34]} 25. Rg3 {[%emt 0:02:38]} Rg7 {[%emt 0:01:24]} 26. Qb2 {[%emt 0:01:06]} Rdg8 {[%emt 0:02:08]} 27. Qd4 {[%emt 0:01:54]} b6 {[%emt 0:00:29]} 28. b4 {[%emt 0:04:21]} Qd7 {[%emt 0:00:22]} 29. a3 {[%emt 0:02:19]} Rc8 {[%emt 0:03:12]} 30. gxf5 {[%emt 0:00:24]} Bxf5 {[%emt 0:00:37]} 31. Rg5 {[%emt 0:01:39]} Rcg8 {[%emt 0:02:24]} 32. Bxf5 {[%emt 0:00:21]} gxf5 {[%emt 0:00:04]} 33. e6 {[%emt 0:01:41]} Qc7 {[%emt 0:00:14]} 34. Qf6 {[%emt 0:02:52]} 1-0

[Event "DVM U14 2021"]
[Site "Willingen"]
[Date "2022.08.14"]
[Round "4"]
[White "Bolz, Jannis"]
[Black "Bezsonna, Polina"]
[Result "1/2-1/2"]
[ECO "B38"]
[WhiteElo "1616"]
[BlackElo "1631"]
[Annotator "NA RC"]
[PlyCount "55"]
[EventDate "2022.08.12"]
[EventType "team-tourn"]
[EventRounds "7"]
[EventCountry "GER"]
[SourceTitle "playchess.com"]
[Source "ChessBase"]
[SourceQuality "1"]
[TimeControl "40/5400+30:1800+30"]

1. d4 {[%emt 0:00:04]} Nf6 {[%emt 0:00:14]} 2. c4 {[%emt 0:00:10]} c5 {[%emt 0:00:07]} 3. Nf3 {[%emt 0:00:06]} g6 {[%emt 0:00:30]} 4. Nc3 {[%emt 0:00:28]} cxd4 {[%emt 0:00:30]} 5. Nxd4 {[%emt 0:00:06]} Bg7 {[%emt 0:00:07]} 6. e4 {[%emt 0:00:23]} Nc6 {[%emt 0:00:27]} 7. Be3 {[%emt 0:00:36]} O-O {[%emt 0:00:19]} 8. Be2 {[%emt 0:00:15]} b6 {[%emt 0:00:15]} 9. f3 {[%emt 0:02:46]} Bb7 {[%emt 0:01:01]} 10. Ndb5 {[%emt 0:00:09]} Rc8 {[%emt 0:03:27]} 11. O-O {[%emt 0:00:15]} Ne8 {[%emt 0:05:54]} 12. Qd2 {[%emt 0:03:07]} Nc7 {[%emt 0:02:10]} 13. Na3 {[%emt 0:03:30]} e6 {[%emt 0:00:41]} 14. Rfd1 {[%emt 0:12:27]} Nb8 {[%emt 0:09:53]} 15. Nab5 {[%emt 0:08:39]} Bxc3 {[%emt 0:03:26]} 16. Nxc3 {[%emt 0:05:29]} Qe7 {[%emt 0:01:15]} 17. e5 {[%emt 0:00:38]} f6 {[%emt 0:02:44]} 18. f4 {[%emt 0:22:14]} f5 {[%emt 0:05:18]} 19. Bf2 {[%emt 0:02:30]} h6 {[%emt 0:09:29]} 20. Qe1 {[%emt 0:13:07]} g5 {[%emt 0:04:09]} 21. Be3 {[%emt 0:03:24]} g4 {[%emt 0:02:18]} 22. Bf2 {[%emt 0:01:46]} Rf7 {[%emt 0:05:04]} 23. a3 {[%emt 0:01:07]} Rh7 {[%emt 0:02:04]} 24. b4 {[%emt 0:00:19]} h5 {[%emt 0:08:46]} 25. Bh4 {[%emt 0:00:41]} Qf8 {[%emt 0:00:34]} 26. Qf2 {[%emt 0:03:02]} Bc6 {[%emt 0:05:52]} 27. Rd2 {[%emt 0:00:44]} Na8 {[%emt 0:07:01]} 28. Bf1 {[%emt 0:04:45]} 1/2-1/2